bitfinex-derivatives/quotes_BNBF0:USTF0_20250331
["timestamp","ask_amount","ask_price","bid_price","bid_amount"]
[1743412470368,0.799,589.83,589.18,0.61520519]
[1743412470668,0.799,589.83,589.19,0.27575036]
[1743412472164,0.799,589.83,589.2,0.33944331]
[1743412472468,0.799,589.83,589.21,0.27575036]
[1743412472669,0.799,589.83,589.22,0.33943179]
[1743412472869,0.799,589.83,589.23,0.27575036]
[1743412473169,0.799,589.83,589.24,0.33942027]
[1743412473362,0.799,589.83,589.25,0.27575036]
[1743412477471,0.799,589.83,589.26,0.27565513]
[1743412477671,0.799,589.83,589.25,0.27565513]
[1743412477966,0.799,589.83,589.26,0.27565513]
[1743412478165,0.799,589.83,589.25,0.27565513]
[1743412478367,0.799,589.83,589.26,0.27565513]
[1743412478565,0.799,589.83,589.25,0.27565513]
[1743412478764,0.799,589.83,589.26,0.27565513]
[1743412478968,0.799,589.83,589.27,0.33940299]
[1743412479169,0.799,589.83,589.28,0.27565513]
[1743412479366,0.799,589.83,589.29,0.33939147]
[1743412479570,0.799,589.83,589.3,0.27565513]
[1743412479768,0.799,589.83,589.31,0.33937995]
[1743412479969,0.799,589.83,589.32,0.27565513]
[1743412480170,0.799,589.83,589.33,0.33936843]
[1743412480368,0.799,589.83,589.34,0.27565513]
[1743412480669,0.799,589.83,589.35,0.33935691]
[1743412480870,0.799,589.83,589.36,0.27565513]
[1743412481070,0.799,589.83,589.37,0.3393454]
[1743412481271,0.799,589.83,589.38,0.27565513]
[1743412481471,0.799,589.83,589.39,0.33933388]
[1743412481673,0.799,589.83,589.4,0.27565513]
[1743412481871,0.799,589.83,589.41,0.33932237]
[1743412482068,0.799,589.83,589.42,0.27565513]
[1743412482267,0.799,589.83,589.43,0.33931085]
[1743412482463,0.799,589.83,589.44,0.27565513]
[1743412484470,0.799,589.83,589.43,0.33931085]
[1743412484668,0.799,589.83,589.44,0.27564518]
[1743412486874,0.799,589.83,589.45,0.27564518]
[1743412487069,0.799,589.83,589.46,0.27564518]
[1743412487269,0.799,589.83,589.44,0.27564518]
[1743412487471,0.799,589.83,589.45,0.27564518]
[1743412487671,0.799,589.83,589.46,0.27564518]
[1743412487876,0.799,589.83,589.44,0.27564518]
[1743412489681,0.799,589.83,589.43,0.33931085]
[1743412489979,0.799,589.83,589.44,0.27565748]
[1743412492076,0.799,589.83,589.45,0.33929934]
[1743412492273,0.799,589.83,589.46,0.27565748]
[1743412492478,0.799,589.83,589.47,0.33928783]
[1743412492778,0.799,589.83,589.48,0.27565748]
[1743412492972,0.799,589.83,589.48,0.61493955]
[1743412493179,0.799,589.83,589.49,0.27565748]
[1743412495981,0.807,589.85,589.49,0.27565748]
[1743412500578,0.807,589.85,589.5,0.27569124]
[1743412500783,0.807,589.85,589.51,0.27569124]
[1743412500984,0.807,589.85,589.48,0.33928207]
[1743412500985,0.807,589.85,589.49,0.27569124]
[1743412501184,0.807,589.85,589.5,0.27569124]
[1743412501380,0.807,589.85,589.51,0.27569124]
[1743412501580,0.807,589.85,589.52,0.27569124]
[1743412501885,0.807,589.85,589.53,0.27569124]
[1743412502077,0.807,589.85,589.54,0.27569124]
[1743412502282,0.807,589.85,589.49,0.27569124]
[1743412502478,0.807,589.85,589.5,0.27569124]
[1743412502682,0.807,589.85,589.49,0.27569124]
[1743412502879,0.807,589.85,589.5,0.27569124]
[1743412503081,0.807,589.85,589.51,0.27569124]
[1743412503282,0.807,589.85,589.48,0.33928207]
[1743412503283,0.807,589.85,589.52,0.27569124]
[1743412503483,0.807,589.85,589.49,0.27569124]
[1743412503687,0.807,589.85,589.5,0.27569124]
[1743412503886,0.807,589.85,589.49,0.27569124]
[1743412507786,0.807,589.85,589.5,0.27569096]
[1743412507981,0.807,589.85,589.51,0.27569096]
[1743412508184,0.807,589.85,589.49,0.27569096]
[1743412508390,0.807,589.85,589.5,0.27569096]
[1743412508583,0.807,589.85,589.49,0.27569096]
[1743412508787,0.807,589.85,589.51,0.27569096]
[1743412508991,0.807,589.85,589.52,0.61495001]
[1743412509290,0.807,589.85,589.53,0.27569096]
[1743412510290,0.807,589.85,589.54,0.33924754]
[1743412510491,0.807,589.85,589.55,0.27569096]
[1743412510691,0.807,589.85,589.56,0.33923604]
[1743412510893,0.807,589.85,589.57,0.27569096]
[1743412512498,0.807,589.85,589.57,0.61492124]
[1743412512699,0.807,589.85,589.58,0.27569096]
[1743412513095,0.807,589.85,589.59,0.33921877]
[1743412513300,0.807,589.85,589.6,0.27569096]
[1743412513702,1.683,589.93,589.6,0.27569096]
[1743412514203,1.683,589.93,589.61,0.27554651]
[1743412514402,1.683,589.93,589.62,0.27554651]
[1743412514603,1.683,589.93,589.63,0.61474227]
[1743412514801,1.683,589.93,589.64,0.61473652]
[1743412514997,1.683,589.93,589.65,0.27554651]
[1743412515302,1.683,589.93,589.65,0.61473077]
[1743412515502,1.683,589.93,589.66,0.27554651]
[1743412515906,1.683,589.93,589.67,0.27550425]
[1743412516104,1.683,589.93,589.68,0.339167]
[1743412516306,1.683,589.93,589.69,0.27550425]
[1743412517904,1.683,589.93,589.68,0.339167]
[1743412517905,1.683,589.93,589.7,0.27553007]
[1743412518105,1.683,589.93,589.69,0.27553007]
[1743412518305,1.683,589.93,589.7,0.27553007]
[1743412518506,1.683,589.93,589.69,0.27553007]
[1743412518699,1.683,589.93,589.7,0.27553007]
[1743412518901,1.683,589.93,589.69,0.27553007]
[1743412519100,1.683,589.93,589.7,0.27553007]
[1743412519407,1.683,589.93,589.71,0.27553007]
[1743412519606,1.683,589.93,589.69,0.27553007]
[1743412519806,1.683,589.93,589.7,0.27553007]
[1743412520107,1.683,589.93,589.69,0.27553007]
[1743412520309,1.683,589.93,589.7,0.27553007]
[1743412520603,1.683,589.93,589.71,0.27553007]
[1743412520803,1.683,589.93,589.69,0.27553007]
[1743412521004,1.683,589.93,589.68,0.339167]
[1743412521005,1.683,589.93,589.7,0.27553007]
[1743412521308,1.683,589.93,589.71,0.61467982]
[1743412521605,1.683,589.93,589.72,0.27553007]
[1743412523103,1.683,589.93,589.73,0.27552325]
[1743412523301,1.683,589.93,589.74,0.61465574]
[1743412523506,1.683,589.93,589.75,0.27552325]
[1743412526004,1.683,589.93,589.76,0.33912099]
[1743412526202,1.683,589.93,589.77,0.27552325]
[1743412526601,1.683,589.93,589.78,0.33910949]
[1743412526809,0.766,590.12,589.79,0.27552325]
[1743412527408,0.766,590.12,589.8,0.33909799]
[1743412527709,0.766,590.12,589.81,0.27552325]
[1743412528009,0.766,590.12,589.82,0.3390865]
[1743412528202,0.766,590.12,589.83,0.27552325]
[1743412530309,0.766,590.12,589.83,0.614604]
[1743412530509,0.766,590.12,589.84,0.27552325]
[1743412531109,0.766,590.12,589.84,0.61459825]
[1743412531309,0.766,590.12,589.85,0.6145925]
[1743412531509,0.766,590.12,589.86,0.61458675]
[1743412531709,0.766,590.12,589.87,0.61449281]
[1743412531909,0.766,590.12,589.88,0.61448707]
[1743412532105,0.766,590.12,589.89,0.61448132]
[1743412532305,0.766,590.12,589.9,0.61447557]
[1743412532508,0.766,590.12,589.91,0.61446982]
[1743412532707,0.766,590.12,589.92,0.61446408]
[1743412532911,0.766,590.12,589.93,0.27543506]
[1743412533513,0.766,590.12,589.94,0.33901752]
[1743412533712,0.766,590.12,589.95,0.27543506]
[1743412533907,0.766,590.12,589.96,0.33900603]
[1743412534214,0.766,590.12,589.97,0.27543506]
[1743412534508,0.766,590.12,589.98,0.33899454]
[1743412534712,0.766,590.12,589.99,0.27543506]
[1743412534913,0.766,590.12,590.0,0.33898305]
[1743412535214,0.766,590.12,590.01,0.27543506]
[1743412535512,0.766,590.12,590.01,0.61441236]
[1743412535713,0.766,590.12,590.02,0.27543506]
[1743412537109,0.766,590.12,590.03,0.27538081]
[1743412537311,0.766,590.12,590.02,0.27538081]
[1743412537510,0.766,590.12,590.03,0.27538081]
[1743412537707,0.766,590.12,590.02,0.27538081]
[1743412538914,0.766,590.12,590.03,0.27540477]
[1743412539107,0.766,590.12,590.04,0.27540477]
[1743412539312,0.766,590.12,590.05,0.27540477]
[1743412539513,0.766,590.12,590.06,0.27540477]
[1743412539712,0.766,590.12,590.07,0.27540477]
[1743412539909,0.766,590.12,590.08,0.27540477]
[1743412540112,0.766,590.12,590.09,0.27540477]
[1743412540415,0.766,590.12,590.1,0.27540477]
[1743412540614,0.766,590.12,590.02,0.27540477]
[1743412541413,0.766,590.12,590.03,0.33896581]
[1743412541611,0.766,590.12,590.04,0.27540477]
[1743412541814,0.766,590.12,590.05,0.33895432]
[1743412542111,0.766,590.12,590.06,0.27540477]
[1743412542310,0.766,590.12,590.07,0.61427935]
[1743412542516,0.766,590.12,590.08,0.61427361]
[1743412542712,0.766,590.12,590.09,0.27533652]
[1743412543217,0.766,590.12,590.1,0.3389256]
[1743412543417,0.766,590.12,590.11,0.27533652]
[1743412543716,0.766,590.12,590.11,0.61425638]
[1743412546722,0.59,590.46,590.11,0.61425638]
[1743412546918,0.59,590.46,590.12,0.61425063]
[1743412547122,0.59,590.46,590.13,0.27533652]
[1743412548822,0.59,590.46,590.14,0.33890263]
[1743412549022,0.59,590.46,590.15,0.27533652]
[1743412549424,0.59,590.46,590.16,0.27533652]
[1743412549624,0.59,590.46,590.17,0.27533652]
[1743412549824,0.59,590.46,590.18,0.27533652]
[1743412550125,0.59,590.46,590.19,0.27533652]
[1743412550325,0.59,590.46,590.2,0.27533652]
[1743412550519,0.59,590.46,590.21,0.27533652]
[1743412550725,0.59,590.46,590.22,0.27533652]
[1743412551024,0.59,590.46,590.14,0.33890263]
[1743412551230,0.59,590.46,590.15,0.27518083]
[1743412551431,0.59,590.46,590.16,0.27518083]
[1743412551732,0.59,590.46,590.17,0.27518083]
[1743412552031,0.59,590.46,590.18,0.61406049]
[1743412552226,0.59,590.46,590.19,0.61405475]
[1743412552425,0.59,590.46,590.2,0.61404901]
[1743412552624,0.59,590.46,590.21,0.61404326]
[1743412552830,0.59,590.46,590.22,0.27518083]
[1743412553031,0.59,590.46,590.23,0.61407149]
[1743412553226,0.59,590.46,590.24,0.27522054]
[1743412553431,0.59,590.46,590.25,0.27522054]
[1743412553627,0.59,590.46,590.24,0.27522054]
[1743412553829,0.59,590.46,590.25,0.27522054]
[1743412554029,0.59,590.46,590.24,0.27522054]
[1743412554229,0.59,590.46,590.25,0.61406001]
[1743412554437,0.59,590.46,590.26,0.61405427]
[1743412554627,0.59,590.46,590.27,0.61404853]
[1743412554831,0.59,590.46,590.28,0.61404279]
[1743412555033,0.59,590.46,590.29,0.27522054]
[1743412556327,0.59,590.46,590.29,0.61403705]
[1743412556530,0.59,590.46,590.29,0.33881651]
[1743412556731,0.59,590.46,590.3,0.27521974]
[1743412557536,0.59,590.46,590.31,0.27521974]
[1743412557731,0.59,590.46,590.32,0.27521974]
[1743412558032,0.59,590.46,590.33,0.27521974]
[1743412558235,0.59,590.46,590.34,0.27521974]
[1743412558436,0.59,590.46,590.35,0.27521974]
[1743412558634,0.59,590.46,590.36,0.27521974]
[1743412558833,0.59,590.46,590.29,0.33881651]
[1743412558834,0.59,590.46,590.37,0.27521974]
[1743412559031,0.59,590.46,590.38,0.27521974]
[1743412559235,0.59,590.46,590.39,0.27521974]
[1743412559431,0.59,590.46,590.4,0.27521974]
[1743412559632,0.59,590.46,590.3,0.27521974]
[1743412559837,0.59,590.46,590.29,0.33881651]
[1743412560129,0.59,590.46,590.3,0.27522271]
[1743412560335,0.59,590.46,590.31,0.27522271]
[1743412560532,0.59,590.46,590.32,0.27522271]
[1743412560739,0.59,590.46,590.33,0.27522271]
[1743412560930,0.59,590.46,590.34,0.27522271]
[1743412561135,0.59,590.46,590.35,0.27522271]
[1743412561435,0.59,590.46,590.36,0.27522107]
[1743412561635,0.59,590.46,590.37,0.27522107]
[1743412561835,0.59,590.46,590.38,0.27522107]
[1743412562031,0.59,590.46,590.39,0.27522107]
[1743412562230,0.59,590.46,590.4,0.27522107]
[1743412562435,0.59,590.46,590.41,0.27522107]
[1743412562633,0.59,590.46,590.29,0.33881651]
[1743412562634,0.59,590.46,590.42,0.27522107]
[1743412562830,0.59,590.46,590.3,0.27522107]
[1743412563031,0.59,590.46,590.3,0.33881077]
[1743412563233,0.59,590.46,590.31,0.27522126]
[1743412563435,0.59,590.46,590.32,0.27522126]
[1743412563634,0.59,590.46,590.33,0.27522126]
[1743412563832,0.59,590.46,590.31,0.27522126]
[1743412564437,0.59,590.46,590.31,0.61402629]
[1743412564639,0.59,590.46,590.32,0.27522126]
[1743412564837,0.59,590.46,590.33,0.27522126]
[1743412565037,0.59,590.46,590.34,0.61400907]
[1743412565232,0.59,590.46,590.35,0.61400333]
[1743412565431,0.59,590.46,590.36,0.61399759]
[1743412565635,0.59,590.46,590.37,0.61399186]
[1743412565937,0.59,590.46,590.38,0.61398612]
[1743412566136,0.59,590.46,590.39,0.61398038]
[1743412566336,0.59,590.46,590.4,0.61397464]
[1743412566531,0.59,590.46,590.41,0.6139689]
[1743412566837,0.59,590.46,590.42,0.61396317]
[1743412567137,0.59,590.46,590.43,0.61395743]
[1743412567340,0.59,590.46,590.44,0.61395169]
[1743412567638,0.59,590.46,590.45,0.27522126]
[1743412568237,0.59,590.46,590.44,0.33873043]
[1743412568538,0.59,590.46,590.45,0.27519079]
[1743412576541,0.59,590.46,590.45,0.61391549]
[1743412586974,0.795,590.76,590.45,0.61391549]
[1743412587181,0.795,590.76,590.46,0.27519079]
[1743412590372,0.29460068,591.15,590.46,0.27519079]
[1743412590572,0.92,590.9,590.46,0.27519079]
[1743412593355,0.92,590.9,590.45,0.3387247]
[1743412593667,1.853,590.9,590.46,0.27516367]
[1743412597169,1.853,590.9,590.47,0.27516441]
[1743412597357,1.853,590.9,590.48,0.27516441]
[1743412597564,1.853,590.9,590.48,0.33870749]
[1743412597763,1.853,590.9,590.49,0.27516441]
[1743412607576,0.92,590.9,590.49,0.27516441]
[1743412614579,0.92,590.9,589.85,2.56500791]
[1743412614580,0.92,590.9,589.86,0.27516441]
[1743412614774,0.92,590.9,589.85,2.56500791]
[1743412614775,0.92,590.9,589.87,0.27532471]
[1743412614981,0.92,590.9,589.86,0.27532471]
[1743412615181,0.92,590.9,589.87,0.29470546]
[1743412615476,0.92,590.9,589.88,0.27532303]
[1743412615677,0.92,590.9,589.89,0.27532303]
[1743412615882,0.92,590.9,589.87,0.29470546]
[1743412615883,0.92,590.9,589.9,0.27532303]
[1743412616177,0.92,590.9,589.91,0.27532303]
[1743412616481,0.92,590.9,589.87,0.29470546]
[1743412616482,0.92,590.9,589.92,0.27532303]
[1743412616681,0.92,590.9,589.93,0.27532303]
[1743412616880,0.92,590.9,589.94,0.27532303]
[1743412617086,1.45989733,590.89,589.95,0.61433481]
[1743412617382,0.768,590.89,589.96,0.61432906]
[1743412617575,0.2947117,590.88,589.97,0.61432331]
[1743412617774,0.2947117,590.88,589.98,0.61431757]
[1743412617980,0.2947117,590.88,589.99,0.27532303]
[1743412620388,0.768,590.89,589.99,0.27532303]
[1743412620587,0.29471545,590.87,589.99,0.27532303]
[1743412621088,0.29471545,590.87,590.0,0.33898305]
[1743412621388,0.768,590.89,590.01,0.27532303]
[1743412621684,0.768,590.89,590.02,0.33897156]
[1743412622084,0.768,590.89,590.03,0.27532303]
[1743412622589,0.768,590.89,590.05,0.33895432]
[1743412622785,0.768,590.89,590.06,0.27532303]
[1743412622984,0.768,590.89,590.08,0.33893709]
[1743412623185,0.768,590.89,590.09,0.27532303]
[1743412623986,0.768,590.89,590.1,0.27532303]
[1743412624289,0.768,590.89,590.08,0.33893709]
[1743412624290,0.768,590.89,590.11,0.27532303]
[1743412624490,0.768,590.89,590.12,0.27532303]
[1743412624690,0.768,590.89,590.13,0.27532303]
[1743412624879,0.768,590.89,590.08,0.33893709]
[1743412624880,0.768,590.89,590.14,0.27532303]
[1743412625080,0.768,590.89,590.15,0.27532303]
[1743412625287,0.768,590.89,590.16,0.27532303]
[1743412625489,0.768,590.89,590.17,0.27532303]
[1743412625692,0.768,590.89,590.08,0.33893709]
[1743412625882,0.768,590.89,590.09,0.27508467]
[1743412626085,0.768,590.89,590.1,0.27508467]
[1743412626291,0.768,590.89,590.11,0.27508467]
[1743412626489,0.768,590.89,590.12,0.27508467]
[1743412626683,0.768,590.89,590.08,0.33893709]
[1743412626684,0.768,590.89,590.13,0.27508467]
[1743412626886,0.768,590.89,590.14,0.27508467]
[1743412627287,0.768,590.89,590.15,0.27508467]
[1743412627492,0.768,590.89,590.16,0.27508467]
[1743412627689,0.768,590.89,590.17,0.27508467]
[1743412627889,0.768,590.89,590.18,0.27508467]
[1743412628090,0.768,590.89,590.19,0.27508467]
[1743412628286,0.768,590.89,590.2,0.27508467]
[1743412628492,0.768,590.89,590.21,0.27508467]
[1743412628691,0.768,590.89,590.22,0.27508467]
[1743412628891,0.768,590.89,590.23,0.27508467]
[1743412629190,0.768,590.89,590.24,0.27508467]
[1743412629390,0.768,590.89,590.25,0.27508467]
[1743412629587,0.768,590.89,590.26,0.27508467]
[1743412629791,0.768,590.89,590.27,0.27508467]
[1743412629991,0.768,590.89,590.28,0.27508467]
[1743412630193,0.768,590.89,590.29,0.27508467]
[1743412630393,0.768,590.89,590.3,0.27508467]
[1743412630687,0.768,590.89,590.31,0.27508467]
[1743412630995,0.601,590.88,590.32,0.27508467]
[1743412631192,0.601,590.88,590.33,0.27508467]
[1743412631392,0.601,590.88,590.34,0.61387248]
[1743412631689,0.601,590.88,590.35,0.61386674]
[1743412631886,0.601,590.88,590.36,0.27508467]
[1743412632090,0.601,590.88,590.37,0.27508467]
[1743412632285,0.601,590.88,590.38,0.27508467]
[1743412632486,0.601,590.88,590.39,0.27508467]
[1743412632691,0.601,590.88,590.4,0.27508467]
[1743412632886,0.601,590.88,590.35,0.33878207]
[1743412632887,0.601,590.88,590.41,0.27520563]
[1743412633090,0.601,590.88,590.36,0.27520563]
[1743412633290,0.601,590.88,590.37,0.27520563]
[1743412633490,0.601,590.88,590.38,0.27520563]
[1743412633793,0.601,590.88,590.39,0.27520563]
[1743412633997,0.601,590.88,590.36,0.27520563]
[1743412634291,0.601,590.88,590.35,0.33878207]
[1743412634292,0.601,590.88,590.37,0.27520563]
[1743412634595,0.601,590.88,590.38,0.27520563]
[1743412634794,0.601,590.88,590.36,0.27520563]
[1743412634996,0.601,590.88,590.37,0.27520563]
[1743412635191,0.601,590.88,590.36,0.27520563]
[1743412635494,0.601,590.88,590.37,0.27520563]
[1743412635698,0.601,590.88,590.38,0.27520563]
[1743412635890,0.601,590.88,590.36,0.27520563]
[1743412636094,0.601,590.88,590.37,0.27520563]
[1743412636296,0.601,590.88,590.36,0.27520563]
[1743412636497,0.601,590.88,590.38,0.27520563]
[1743412636697,0.601,590.88,590.39,0.27520563]
[1743412636892,0.601,590.88,590.36,0.27520563]
[1743412640102,0.601,590.88,590.37,0.27524714]
[1743412640299,0.601,590.88,590.36,0.27524714]
[1743412640495,0.601,590.88,590.38,0.27524714]
[1743412640697,0.601,590.88,590.39,0.27524714]
[1743412641098,0.601,590.88,590.4,0.27524714]
[1743412641300,0.601,590.88,590.36,0.27524714]
[1743412641796,0.93,590.87,590.35,0.33878207]
[1743412642000,0.93,590.87,590.36,0.27527474]
[1743412644601,0.927,590.86,590.36,0.27527474]
[1743412646100,0.927,590.86,589.45,0.27527474]
[1743412646400,0.927,590.86,589.47,0.33928783]
[1743412646603,0.927,590.86,589.48,0.27527474]
[1743412646798,0.927,590.86,589.49,0.27527474]
[1743412646999,0.927,590.86,589.5,0.27527474]
[1743412647194,0.927,590.86,589.51,0.27527474]
[1743412647402,0.927,590.86,589.52,0.27527474]
[1743412647600,0.927,590.86,589.53,0.27527474]
[1743412647800,0.927,590.86,589.54,0.27527474]
[1743412648002,0.927,590.86,589.56,0.33923604]
[1743412648205,0.927,590.86,589.57,0.27527474]
[1743412648502,0.927,590.86,589.56,0.33923604]
[1743412648503,0.927,590.86,589.58,0.27527474]
[1743412648704,0.927,590.86,589.59,0.27527474]
[1743412648899,0.927,590.86,589.6,0.27529937]
[1743412649105,0.927,590.86,589.61,0.27529937]
[1743412649305,0.927,590.86,589.62,0.27529937]
[1743412649504,0.927,590.86,589.63,0.27529937]
[1743412649704,0.927,590.86,589.64,0.27529937]
[1743412649906,0.927,590.86,589.65,0.27529937]
[1743412650200,0.927,590.86,589.66,0.27529937]
[1743412650505,0.927,590.86,589.68,0.339167]
[1743412650706,0.927,590.86,589.69,0.27529937]
[1743412650901,0.927,590.86,589.71,0.33914975]
[1743412651103,0.927,590.86,589.72,0.27529937]
[1743412651303,0.927,590.86,589.73,0.27529937]
[1743412651505,0.927,590.86,589.74,0.27529937]
[1743412651706,0.927,590.86,589.75,0.27529937]
[1743412651909,0.927,590.86,589.76,0.27529937]
[1743412652206,0.927,590.86,589.77,0.27529937]
[1743412652406,0.927,590.86,589.72,0.27529937]
[1743412652599,0.927,590.86,589.71,0.33914975]
[1743412652802,0.927,590.86,589.72,0.27531665]
[1743412653002,0.927,590.86,589.73,0.27531665]
[1743412653204,0.927,590.86,589.74,0.27531665]
[1743412653407,0.927,590.86,589.75,0.27531665]
[1743412653709,0.927,590.86,589.76,0.27531665]
[1743412653906,0.927,590.86,589.72,0.27531665]
[1743412654106,0.927,590.86,589.73,0.27531665]
[1743412654308,0.927,590.86,589.71,0.33914975]
[1743412654511,0.927,590.86,589.72,0.2753003]
[1743412654711,0.927,590.86,589.73,0.2753003]
[1743412654905,0.927,590.86,589.71,0.33914975]
[1743412654906,0.927,590.86,589.74,0.2753003]
[1743412655108,0.927,590.86,589.75,0.2753003]
[1743412655305,0.927,590.86,589.76,0.2753003]
[1743412655510,0.93,590.87,589.77,0.2753003]
[1743412655710,0.93,590.87,589.79,0.33910374]
[1743412655913,0.93,590.87,589.8,0.2753003]
[1743412656114,0.93,590.87,589.82,0.3390865]
[1743412656414,0.93,590.87,589.83,0.2753003]
[1743412656615,0.93,590.87,589.85,0.33906925]
[1743412656811,0.93,590.87,589.86,0.2753003]
[1743412657015,0.93,590.87,589.88,0.33905201]
[1743412657213,0.93,590.87,589.89,0.2753003]
[1743412657417,0.93,590.87,589.9,0.33904051]
[1743412657618,0.93,590.87,589.91,0.2753003]
[1743412657818,0.93,590.87,589.92,0.33902902]
[1743412658019,0.93,590.87,589.93,0.2753003]
[1743412658314,0.93,590.87,589.94,0.33901752]
[1743412658521,0.93,590.87,589.95,0.2753003]
[1743412658715,0.93,590.87,589.96,0.61430633]
[1743412658915,0.93,590.87,589.97,0.61430058]
[1743412659119,0.93,590.87,589.98,0.61429484]
[1743412659319,0.93,590.87,589.99,0.2753003]
[1743412659521,0.93,590.87,590.0,0.2753003]
[1743412659718,0.918,590.86,590.01,0.2753003]
[1743412660018,0.918,590.86,590.02,0.2753003]
[1743412660219,0.918,590.86,589.99,0.2753003]
[1743412660418,0.918,590.86,590.0,0.61428335]
[1743412660613,0.918,590.86,590.01,0.6142776]
[1743412660819,0.918,590.86,590.02,0.61427186]
[1743412661118,0.918,590.86,590.03,0.61426611]
[1743412661316,0.918,590.86,590.04,0.61426037]
[1743412661513,0.918,590.86,590.05,0.2753003]
[1743412662518,0.835,590.85,590.05,0.2753003]
[1743412663722,0.849,590.84,590.05,0.2753003]
[1743412663920,0.849,590.84,590.06,0.33894858]
[1743412664120,0.849,590.84,590.07,0.2753003]
[1743412664921,0.849,590.84,590.08,0.33893709]
[1743412665119,0.849,590.84,590.09,0.2753003]
[1743412665352,0.849,590.84,590.1,0.3389256]
[1743412665553,0.849,590.84,590.11,0.2753003]
[1743412666553,0.849,590.84,590.12,0.33891411]
[1743412666948,0.849,590.84,590.13,0.2753003]
[1743412667547,0.849,590.84,590.14,0.33890263]
[1743412667743,0.849,590.84,590.15,0.2753003]
[1743412671223,0.849,590.84,590.15,0.61419719]
[1743412671425,0.849,590.84,590.16,0.61419144]
[1743412671631,0.849,590.84,590.17,0.6141857]
[1743412671827,0.849,590.84,590.18,0.61417996]
[1743412672028,0.849,590.84,590.19,0.2753003]
[1743412673231,0.849,590.84,590.2,0.33886818]
[1743412673433,0.849,590.84,590.21,0.2753003]
[1743412673728,0.849,590.84,590.22,0.33885669]
[1743412673933,0.849,590.84,590.23,0.27523049]
[1743412674134,0.849,590.84,590.24,0.33884521]
[1743412674431,0.849,590.84,590.25,0.27523049]
[1743412674627,0.849,590.84,590.26,0.33883373]
[1743412674833,0.849,590.84,590.27,0.27523049]
[1743412675037,0.849,590.84,590.28,0.33882225]
[1743412675330,0.849,590.84,590.29,0.27523049]
[1743412677935,0.849,590.84,590.3,0.33881077]
[1743412678138,0.849,590.84,590.31,0.27523049]
[1743412678338,0.849,590.84,590.32,0.33879929]
[1743412678540,0.849,590.84,590.33,0.27523049]
[1743412678739,0.849,590.84,590.34,0.33878781]
[1743412679039,0.849,590.84,590.35,0.27523049]
[1743412679241,0.849,590.84,590.36,0.33877633]
[1743412679436,0.849,590.84,590.37,0.27523049]
[1743412680843,0.849,590.84,590.37,0.61400109]
[1743412681041,0.849,590.84,590.38,0.27523049]
[1743412682640,0.849,590.84,590.38,0.61399535]
[1743412682839,0.849,590.84,590.39,0.27523049]
[1743412683034,0.776,590.83,590.39,0.27523049]
[1743412683840,0.776,590.83,590.38,0.33876486]
[1743412684041,0.776,590.83,590.39,0.27518947]
[1743412685440,0.776,590.83,590.4,0.27518947]
[1743412685741,0.776,590.83,590.41,0.27518947]
[1743412686037,0.776,590.83,590.42,0.61393138]
[1743412686236,0.776,590.83,590.43,0.27518947]
[1743412686440,0.776,590.83,590.44,0.6139199]
[1743412686635,0.776,590.83,590.45,0.3387247]
[1743412686842,0.776,590.83,590.46,0.27518947]
[1743412687046,0.776,590.83,590.47,0.61390269]
[1743412687242,0.776,590.83,590.48,0.61389696]
[1743412687444,0.776,590.83,590.49,0.61389122]
[1743412687643,0.776,590.83,590.5,0.27518947]